[Event "Late-Titled-Tuesday-Blitz-May-28-2024"]
[Site "Chess.com"]
[Date "2024.05.28"]
[Round "1"]
[White "2L8IWUN"]
[Black "korkmaz16"]
[Result "0-1"]
[WhiteElo "2173"]
[BlackElo "2561"]
[TimeControl "180+1"]
[EndTime "14:05:34 PDT"]
[Termination "korkmaz16 won by resignation"]

1. d4 {[%clk 0:03:00.4]} 1... d5 {[%clk 0:02:56.7]} 2. Nf3 {[%clk 0:03:00.7]}
2... Nf6 {[%clk 0:02:56.3]} 3. Bf4 {[%clk 0:02:58.1]} 3... c5 {[%clk 0:02:55.8]}
4. e3 {[%clk 0:02:58.3]} 4... Nc6 {[%clk 0:02:55.7]} 5. Nbd2 {[%clk 0:02:58.9]}
5... Qb6 {[%clk 0:02:53.2]} 6. dxc5 {[%clk 0:02:59.3]} 6... Qxb2 {[%clk
0:02:49]} 7. Rb1 {[%clk 0:02:59.8]} 7... Qc3 {[%clk 0:02:48.7]} 8. Bb5 {[%clk
0:03:00.3]} 8... g6 {[%clk 0:02:42.7]} 9. O-O {[%clk 0:02:57.1]} 9... Qxc5
{[%clk 0:02:34.9]} 10. c4 {[%clk 0:02:51.7]} 10... dxc4 {[%clk 0:02:29.9]} 11.
Nxc4 {[%clk 0:02:21.3]} 11... Bg7 {[%clk 0:02:18.8]} 12. Qe2 {[%clk 0:01:40.6]}
12... O-O {[%clk 0:02:11.1]} 13. Rfc1 {[%clk 0:01:39.2]} 13... Nd5 {[%clk
0:01:34.6]} 14. Nce5 {[%clk 0:00:20.3]} 14... Nc3 {[%clk 0:01:31.3]} 15. Qd2
{[%clk 0:00:12.7]} 15... Nxe5 {[%clk 0:01:29.5]} 16. Bxe5 {[%clk 0:00:09.1]}
16... Bxe5 {[%clk 0:01:20]} 17. Nxe5 {[%clk 0:00:09.4]} 17... Nxb1 {[%clk
0:01:19.8]} 18. Rxc5 {[%clk 0:00:08.5]} 18... Nxd2 {[%clk 0:01:19.5]} 19. Bd3
{[%clk 0:00:07.6]} 19... Bf5 {[%clk 0:01:10.5]} 0-1

[Event "Late-Titled-Tuesday-Blitz-May-28-2024"]
[Site "Chess.com"]
[Date "2024.05.28"]
[Round "1"]
[White "PNEPaul"]
[Black "rdarruda"]
[Result "0-1"]
[WhiteElo "1903"]
[BlackElo "2541"]
[TimeControl "180+1"]
[EndTime "14:05:36 PDT"]
[Termination "rdarruda won by resignation"]

1. e4 {[%clk 0:02:58.2]} 1... c5 {[%clk 0:02:59.4]} 2. Nf3 {[%clk 0:02:57.9]}
2... Nc6 {[%clk 0:02:59.4]} 3. d4 {[%clk 0:02:58.1]} 3... cxd4 {[%clk
0:02:59.5]} 4. c3 {[%clk 0:02:58.4]} 4... dxc3 {[%clk 0:02:58.1]} 5. Nxc3 {[%clk
0:02:57.9]} 5... e6 {[%clk 0:02:58.5]} 6. Bf4 {[%clk 0:02:56.9]} 6... Bb4 {[%clk
0:02:57]} 7. Bd3 {[%clk 0:02:56.5]} 7... Nge7 {[%clk 0:02:55.7]} 8. e5 {[%clk
0:02:56.5]} 8... d5 {[%clk 0:02:51.6]} 9. a3 {[%clk 0:02:49]} 9... Ba5 {[%clk
0:02:45.1]} 10. b4 {[%clk 0:02:48.4]} 10... Bc7 {[%clk 0:02:41.8]} 11. Qe2
{[%clk 0:02:47.7]} 11... O-O {[%clk 0:02:36.1]} 12. Bxh7+ {[%clk 0:02:46.5]}
12... Kxh7 {[%clk 0:02:28.2]} 13. Ng5+ {[%clk 0:02:46.3]} 13... Kg6 {[%clk
0:02:28.2]} 14. h4 {[%clk 0:02:46.5]} 14... Nxe5 {[%clk 0:01:57.9]} 15. h5+
{[%clk 0:02:13.3]} 15... Kf5 {[%clk 0:01:57]} 16. Bxe5 {[%clk 0:02:01.7]} 16...
Bxe5 {[%clk 0:01:49.7]} 17. g4+ {[%clk 0:02:01.4]} 17... Kxg5 {[%clk 0:01:49]}
18. Qxe5+ {[%clk 0:02:01.1]} 18... Kh6 {[%clk 0:01:40.2]} 19. g5+ {[%clk
0:01:38.5]} 19... Kh7 {[%clk 0:01:39.8]} 20. g6+ {[%clk 0:01:22.5]} 20... Kg8
{[%clk 0:01:39.4]} 21. gxf7+ {[%clk 0:01:18.9]} 21... Rxf7 {[%clk 0:01:38.9]}
22. h6 {[%clk 0:01:16.9]} 22... Nc6 {[%clk 0:01:32.1]} 23. Qg3 {[%clk 0:01:12]}
23... Qf6 {[%clk 0:01:27.5]} 24. h7+ {[%clk 0:01:10.3]} 24... Kh8 {[%clk
0:01:27]} 25. O-O-O {[%clk 0:01:06]} 25... Qf4+ {[%clk 0:01:23.9]} 26. Qxf4
{[%clk 0:01:04.5]} 26... Rxf4 {[%clk 0:01:24.8]} 27. Nb5 {[%clk 0:00:59.7]}
27... Bd7 {[%clk 0:01:23.3]} 28. Nd6 {[%clk 0:00:58]} 28... Raf8 {[%clk
0:01:20.9]} 29. Nxb7 {[%clk 0:00:54.4]} 29... Rxf2 {[%clk 0:01:20.7]} 30. Nc5
{[%clk 0:00:54.5]} 30... Bc8 {[%clk 0:01:17.4]} 31. Nd3 {[%clk 0:00:53.9]} 31...
Ra2 {[%clk 0:01:12.4]} 32. Rhf1 {[%clk 0:00:42]} 32... Rxf1 {[%clk 0:01:05.2]}
33. Rxf1 {[%clk 0:00:40.5]} 33... Ra1+ {[%clk 0:01:05.3]} 0-1

[Event "Late-Titled-Tuesday-Blitz-May-28-2024"]
[Site "Chess.com"]
[Date "2024.05.28"]
[Round "1"]
[White "joksijoksi"]
[Black "Msb2"]
[Result "0-1"]
[WhiteElo "2524"]
[BlackElo "3029"]
[TimeControl "180+1"]
[EndTime "14:05:40 PDT"]
[Termination "Msb2 won by resignation"]

1. d4 {[%clk 0:02:53.9]} 1... d5 {[%clk 0:02:59.3]} 2. c4 {[%clk 0:02:53.9]}
2... e6 {[%clk 0:02:59.9]} 3. Nc3 {[%clk 0:02:53.9]} 3... Bb4 {[%clk 0:02:59.9]}
4. Nf3 {[%clk 0:02:51.4]} 4... Nf6 {[%clk 0:03:00.1]} 5. Bg5 {[%clk 0:02:51.3]}
5... h6 {[%clk 0:03:00.3]} 6. Bxf6 {[%clk 0:02:51.4]} 6... Qxf6 {[%clk
0:03:01.2]} 7. e3 {[%clk 0:02:51.9]} 7... c5 {[%clk 0:03:01.7]} 8. cxd5 {[%clk
0:02:51.4]} 8... exd5 {[%clk 0:03:02.6]} 9. Qb3 {[%clk 0:02:47.7]} 9... O-O
{[%clk 0:03:00.1]} 10. Be2 {[%clk 0:02:46.8]} 10... Bxc3+ {[%clk 0:02:50.4]} 11.
Qxc3 {[%clk 0:02:38.5]} 11... c4 {[%clk 0:02:48.7]} 12. b3 {[%clk 0:02:35.2]}
12... Be6 {[%clk 0:02:48.6]} 13. bxc4 {[%clk 0:02:33.1]} 13... dxc4 {[%clk
0:02:49.5]} 14. O-O {[%clk 0:02:32.6]} 14... Rc8 {[%clk 0:02:48.2]} 15. Rfc1
{[%clk 0:02:30.3]} 15... Nd7 {[%clk 0:02:47.1]} 16. Rab1 {[%clk 0:02:29.7]}
16... Rab8 {[%clk 0:02:38.7]} 17. a4 {[%clk 0:02:22.4]} 17... Nb6 {[%clk
0:02:32.7]} 18. a5 {[%clk 0:02:17.3]} 18... Nd5 {[%clk 0:02:32.5]} 19. Qa3
{[%clk 0:02:16.3]} 19... c3 {[%clk 0:02:20.8]} 20. Ne5 {[%clk 0:02:06.4]} 20...
b6 {[%clk 0:02:07.4]} 21. axb6 {[%clk 0:02:00.1]} 21... axb6 {[%clk 0:02:08.3]}
22. Bf3 {[%clk 0:01:54.9]} 22... Qg5 {[%clk 0:01:58.8]} 23. Rb5 {[%clk
0:01:03.9]} 23... Ra8 {[%clk 0:01:25.9]} 24. Qd6 {[%clk 0:00:50.2]} 24... Nxe3
{[%clk 0:01:20.3]} 25. Bxa8 {[%clk 0:00:27.7]} 25... Nc4 {[%clk 0:01:20.5]} 26.
Nd3 {[%clk 0:00:19.3]} 26... Qxc1+ {[%clk 0:01:17.3]} 27. Nxc1 {[%clk
0:00:18.2]} 27... Nxd6 {[%clk 0:01:18.2]} 28. Rxb6 {[%clk 0:00:17.6]} 28... Rxa8
{[%clk 0:01:18.8]} 29. Rxd6 {[%clk 0:00:17.3]} 29... Ra1 {[%clk 0:01:19.5]} 0-1

[Event "Late-Titled-Tuesday-Blitz-May-28-2024"]
[Site "Chess.com"]
[Date "2024.05.28"]
[Round "1"]
[White "AGW2016"]
[Black "rezamahdavi2008"]
[Result "0-1"]
[WhiteElo "2518"]
[BlackElo "3002"]
[TimeControl "180+1"]
[EndTime "14:05:41 PDT"]
[Termination "rezamahdavi2008 won by resignation"]

1. d4 {[%clk 0:03:00.4]} 1... d5 {[%clk 0:02:59.7]} 2. c4 {[%clk 0:03:00.1]}
2... dxc4 {[%clk 0:03:00.6]} 3. e3 {[%clk 0:03:00.6]} 3... Nf6 {[%clk
0:03:00.7]} 4. Bxc4 {[%clk 0:03:01.2]} 4... e6 {[%clk 0:03:01.3]} 5. Nf3 {[%clk
0:03:01.8]} 5... c5 {[%clk 0:03:02]} 6. O-O {[%clk 0:03:02]} 6... Nc6 {[%clk
0:03:02.8]} 7. Nc3 {[%clk 0:03:00]} 7... a6 {[%clk 0:03:03.2]} 8. a3 {[%clk
0:02:58.8]} 8... b5 {[%clk 0:02:58.3]} 9. Ba2 {[%clk 0:02:59.2]} 9... Bb7 {[%clk
0:02:53.5]} 10. d5 {[%clk 0:02:58.3]} 10... exd5 {[%clk 0:02:49]} 11. Nxd5
{[%clk 0:02:59.2]} 11... Nxd5 {[%clk 0:02:46.4]} 12. Bxd5 {[%clk 0:03:00.1]}
12... Be7 {[%clk 0:02:41.8]} 13. e4 {[%clk 0:02:59.6]} 13... O-O {[%clk
0:02:36.4]} 14. Be3 {[%clk 0:03:00.2]} 14... Rc8 {[%clk 0:02:17.7]} 15. Rc1
{[%clk 0:02:59.7]} 15... Na5 {[%clk 0:02:18.3]} 16. Bxb7 {[%clk 0:02:58.5]}
16... Nxb7 {[%clk 0:02:18.9]} 17. Qe2 {[%clk 0:02:57.3]} 17... Re8 {[%clk
0:02:12.2]} 18. Rfd1 {[%clk 0:02:55.5]} 18... Qb6 {[%clk 0:02:11]} 19. Nd2
{[%clk 0:02:48.7]} 19... Qe6 {[%clk 0:02:07.5]} 20. f3 {[%clk 0:02:38.1]} 20...
c4 {[%clk 0:02:03.7]} 21. Nb1 {[%clk 0:02:37]} 21... Nc5 {[%clk 0:01:53.7]} 22.
Bxc5 {[%clk 0:02:31.5]} 22... Bxc5+ {[%clk 0:01:54.6]} 23. Kh1 {[%clk 0:02:32]}
23... Rcd8 {[%clk 0:01:53]} 24. Nc3 {[%clk 0:02:31.4]} 24... Bd4 {[%clk
0:01:52.1]} 25. Rc2 {[%clk 0:02:23.5]} 25... Rd7 {[%clk 0:01:39.6]} 26. Rcd2
{[%clk 0:02:16.6]} 26... Red8 {[%clk 0:01:40.1]} 27. Nd5 {[%clk 0:02:15.1]}
27... Bc5 {[%clk 0:01:35.2]} 28. Nf4 {[%clk 0:02:02.5]} 28... Qc6 {[%clk
0:01:22.8]} 29. Nd5 {[%clk 0:01:54.3]} 29... h6 {[%clk 0:01:20]} 30. f4 {[%clk
0:01:50.4]} 30... f5 {[%clk 0:01:14.9]} 31. Qf3 {[%clk 0:01:42.2]} 31... fxe4
{[%clk 0:01:08.9]} 32. Qxe4 {[%clk 0:01:43.1]} 32... Kh8 {[%clk 0:01:09.4]} 33.
h3 {[%clk 0:01:39.8]} 33... a5 {[%clk 0:01:02.2]} 34. Kh2 {[%clk 0:01:36]} 34...
b4 {[%clk 0:00:55.2]} 35. axb4 {[%clk 0:01:33.5]} 35... axb4 {[%clk 0:00:56.1]}
36. Nf6 {[%clk 0:01:23]} 36... Qxe4 {[%clk 0:00:48.2]} 37. Nxe4 {[%clk
0:01:23.7]} 37... Rxd2 {[%clk 0:00:48.7]} 38. Rxd2 {[%clk 0:01:24.3]} 38... Rxd2
{[%clk 0:00:49.1]} 39. Nxd2 {[%clk 0:01:24.8]} 39... c3 {[%clk 0:00:49.8]} 40.
bxc3 {[%clk 0:01:22.9]} 40... bxc3 {[%clk 0:00:50.7]} 41. Nb3 {[%clk 0:01:23.6]}
41... c2 {[%clk 0:00:50.7]} 42. g4 {[%clk 0:01:21.1]} 42... Bd6 {[%clk
0:00:47.3]} 43. Kg3 {[%clk 0:01:20.9]} 43... g5 {[%clk 0:00:47.9]} 44. Kf3
{[%clk 0:01:18.2]} 44... Bxf4 {[%clk 0:00:48.8]} 0-1

[Event "Late-Titled-Tuesday-Blitz-May-28-2024"]
[Site "Chess.com"]
[Date "2024.05.28"]
[Round "1"]
[White "rhungaski"]
[Black "RebecaJimnz"]
[Result "1-0"]
[WhiteElo "2601"]
[BlackElo "2285"]
[TimeControl "180+1"]
[EndTime "14:05:43 PDT"]
[Termination "rhungaski won by checkmate"]

1. b3 {[%clk 0:02:59.9]} 1... e5 {[%clk 0:02:57.9]} 2. Bb2 {[%clk 0:02:58.8]}
2... Nc6 {[%clk 0:02:58.1]} 3. c4 {[%clk 0:02:59.3]} 3... d6 {[%clk 0:02:58.7]}
4. e3 {[%clk 0:02:59.1]} 4... g6 {[%clk 0:02:58.9]} 5. Nc3 {[%clk 0:02:59.5]}
5... Bg7 {[%clk 0:02:59]} 6. Nf3 {[%clk 0:02:44.5]} 6... Nge7 {[%clk 0:02:58.6]}
7. d4 {[%clk 0:02:43.3]} 7... exd4 {[%clk 0:02:57.7]} 8. exd4 {[%clk 0:02:41.4]}
8... d5 {[%clk 0:02:57.9]} 9. Ne2 {[%clk 0:02:09.9]} 9... O-O {[%clk 0:02:53]}
10. h3 {[%clk 0:02:10.1]} 10... Re8 {[%clk 0:02:36.3]} 11. g4 {[%clk 0:02:02.7]}
11... Bd7 {[%clk 0:01:45.3]} 12. Bg2 {[%clk 0:02:00.4]} 12... a5 {[%clk
0:01:30.1]} 13. Qd2 {[%clk 0:01:52.6]} 13... Nb4 {[%clk 0:01:20.1]} 14. a3
{[%clk 0:01:47.2]} 14... Na6 {[%clk 0:01:16.7]} 15. Qxa5 {[%clk 0:01:23.4]}
15... dxc4 {[%clk 0:01:16.9]} 16. bxc4 {[%clk 0:01:24.3]} 16... Nc6 {[%clk
0:01:17.2]} 17. Qd2 {[%clk 0:01:20.2]} 17... Qe7 {[%clk 0:01:05.9]} 18. Kf1
{[%clk 0:01:20]} 18... Bh6 {[%clk 0:00:47.2]} 19. Qc2 {[%clk 0:01:10.6]} 19...
Na5 {[%clk 0:00:23.9]} 20. Re1 {[%clk 0:01:07.9]} 20... Qd6 {[%clk 0:00:16.7]}
21. Qc3 {[%clk 0:01:00]} 21... b6 {[%clk 0:00:15.8]} 22. d5 {[%clk 0:01:00]}
22... Nb7 {[%clk 0:00:15.3]} 23. Qh8# {[%clk 0:00:59.1]} 1-0

[Event "Late-Titled-Tuesday-Blitz-May-28-2024"]
[Site "Chess.com"]
[Date "2024.05.28"]
[Round "1"]
[White "The_Sherman_Variation"]
[Black "ChEsper99"]
[Result "1-0"]
[WhiteElo "2579"]
[BlackElo "2247"]
[TimeControl "180+1"]
[EndTime "14:05:43 PDT"]
[Termination "The_Sherman_Variation won by resignation"]

1. h3 {[%clk 0:02:58.8]} 1... d5 {[%clk 0:02:57.8]} 2. a3 {[%clk 0:02:59.7]}
2... e5 {[%clk 0:02:57.7]} 3. g3 {[%clk 0:02:59.7]} 3... Nf6 {[%clk 0:02:57.8]}
4. Bg2 {[%clk 0:03:00.2]} 4... Bd6 {[%clk 0:02:58]} 5. d3 {[%clk 0:02:58.3]}
5... c5 {[%clk 0:02:58.1]} 6. Nc3 {[%clk 0:02:54.2]} 6... Be6 {[%clk 0:02:57.2]}
7. e4 {[%clk 0:02:53.5]} 7... dxe4 {[%clk 0:02:53.6]} 8. dxe4 {[%clk 0:02:49.2]}
8... O-O {[%clk 0:02:42.6]} 9. Be3 {[%clk 0:02:47.5]} 9... Nc6 {[%clk
0:02:34.9]} 10. Nf3 {[%clk 0:02:43]} 10... Nd4 {[%clk 0:02:33.5]} 11. O-O {[%clk
0:02:41.9]} 11... a6 {[%clk 0:02:00.2]} 12. Nd2 {[%clk 0:02:38.8]} 12... b5
{[%clk 0:01:57.5]} 13. Ne2 {[%clk 0:02:38.4]} 13... Qc8 {[%clk 0:01:47.6]} 14.
Kh2 {[%clk 0:02:37.1]} 14... Rd8 {[%clk 0:01:44.7]} 15. c3 {[%clk 0:02:35.2]}
15... Nxe2 {[%clk 0:01:44.2]} 16. Qxe2 {[%clk 0:02:36.1]} 16... Rb8 {[%clk
0:01:41.1]} 17. Rad1 {[%clk 0:02:32.7]} 17... b4 {[%clk 0:01:38.5]} 18. axb4
{[%clk 0:02:29.5]} 18... cxb4 {[%clk 0:01:38.4]} 19. c4 {[%clk 0:02:29.7]} 19...
Bc5 {[%clk 0:01:38]} 20. b3 {[%clk 0:02:27.1]} 20... Bd4 {[%clk 0:01:22.1]} 21.
Nf3 {[%clk 0:02:18.5]} 21... Bxe3 {[%clk 0:01:21.4]} 22. Qxe3 {[%clk 0:02:19.4]}
22... Qc6 {[%clk 0:01:20]} 23. Nxe5 {[%clk 0:02:17]} 23... Qc7 {[%clk
0:01:19.6]} 24. f4 {[%clk 0:02:14.4]} 24... a5 {[%clk 0:01:14.6]} 25. Nf3 {[%clk
0:02:04.6]} 25... a4 {[%clk 0:01:10.9]} 26. f5 {[%clk 0:01:57]} 26... Bd7 {[%clk
0:01:08.5]} 27. e5 {[%clk 0:01:56]} 27... Ne8 {[%clk 0:01:05.1]} 28. Ng5 {[%clk
0:01:51.1]} 28... Bc6 {[%clk 0:01:02.8]} 29. e6 {[%clk 0:01:40.4]} 29... f6
{[%clk 0:00:58.1]} 30. e7 {[%clk 0:01:32.2]} 30... Rd6 {[%clk 0:00:46.3]} 31. c5
{[%clk 0:01:23.3]} 31... fxg5 {[%clk 0:00:24.2]} 32. cxd6 {[%clk 0:01:22.8]}
32... Nxd6 {[%clk 0:00:24.1]} 33. Qe6+ {[%clk 0:01:23.4]} 33... Kh8 {[%clk
0:00:24]} 34. Qxd6 {[%clk 0:01:23]} 1-0

[Event "Late-Titled-Tuesday-Blitz-May-28-2024"]
[Site "Chess.com"]
[Date "2024.05.28"]
[Round "1"]
[White "Balla_Tamas"]
[Black "bubeliang"]
[Result "0-1"]
[WhiteElo "2452"]
[BlackElo "2803"]
[TimeControl "180+1"]
[EndTime "14:05:45 PDT"]
[Termination "bubeliang won by resignation"]

1. e4 {[%clk 0:02:58.2]} 1... c6 {[%clk 0:02:57.1]} 2. d4 {[%clk 0:02:58.2]}
2... d5 {[%clk 0:02:58]} 3. e5 {[%clk 0:02:58.6]} 3... c5 {[%clk 0:02:57.9]} 4.
dxc5 {[%clk 0:02:55.5]} 4... e6 {[%clk 0:02:57.9]} 5. Be3 {[%clk 0:02:55.1]}
5... Nd7 {[%clk 0:02:57.3]} 6. Bb5 {[%clk 0:02:55]} 6... Ne7 {[%clk 0:02:53.8]}
7. c3 {[%clk 0:02:46.7]} 7... Nf5 {[%clk 0:02:47.2]} 8. Bd4 {[%clk 0:02:37.5]}
8... Qc7 {[%clk 0:02:45]} 9. b4 {[%clk 0:02:33]} 9... a5 {[%clk 0:02:39.3]} 10.
Nf3 {[%clk 0:02:29.6]} 10... Be7 {[%clk 0:02:33.2]} 11. O-O {[%clk 0:02:20.4]}
11... O-O {[%clk 0:02:31.9]} 12. a3 {[%clk 0:02:12.7]} 12... Nxd4 {[%clk
0:02:27.6]} 13. cxd4 {[%clk 0:02:12.1]} 13... axb4 {[%clk 0:02:26.3]} 14. Qb3
{[%clk 0:02:05.2]} 14... b6 {[%clk 0:02:22.8]} 15. c6 {[%clk 0:01:56.9]} 15...
Nb8 {[%clk 0:02:21.2]} 16. Nbd2 {[%clk 0:01:55.1]} 16... Nxc6 {[%clk 0:02:16.7]}
17. Rfc1 {[%clk 0:01:49]} 17... Bb7 {[%clk 0:02:16.3]} 18. axb4 {[%clk
0:01:31.1]} 18... Rxa1 {[%clk 0:02:09]} 19. Rxa1 {[%clk 0:01:32]} 19... Nxb4
{[%clk 0:02:04.5]} 20. Rb1 {[%clk 0:01:22.1]} 20... Rc8 {[%clk 0:01:59.5]} 21.
Bf1 {[%clk 0:01:20.1]} 21... Qc2 {[%clk 0:01:48.8]} 22. Qa3 {[%clk 0:01:09.8]}
22... Ra8 {[%clk 0:01:42.5]} 23. Qe3 {[%clk 0:01:04.2]} 23... h6 {[%clk
0:01:39.7]} 24. h3 {[%clk 0:01:04.1]} 24... Ba6 {[%clk 0:01:33.1]} 25. Bxa6
{[%clk 0:01:00.4]} 25... Rxa6 {[%clk 0:01:34]} 26. Re1 {[%clk 0:00:38.8]} 26...
Qd3 {[%clk 0:01:32]} 27. Qf4 {[%clk 0:00:38.3]} 27... Ra8 {[%clk 0:01:28.7]} 28.
Re3 {[%clk 0:00:37.1]} 28... Qg6 {[%clk 0:01:27.8]} 29. Nh4 {[%clk 0:00:25.6]}
29... Qg5 {[%clk 0:01:18.3]} 30. Rf3 {[%clk 0:00:16.7]} 30... Qxf4 {[%clk
0:01:17.6]} 31. Rxf4 {[%clk 0:00:17.6]} 31... Bg5 {[%clk 0:01:18.3]} 0-1

[Event "Late-Titled-Tuesday-Blitz-May-28-2024"]
[Site "Chess.com"]
[Date "2024.05.28"]
[Round "1"]
[White "olawsson"]
[Black "KirAk47"]
[Result "0-1"]
[WhiteElo "2129"]
[BlackElo "2553"]
[TimeControl "180+1"]
[EndTime "14:05:47 PDT"]
[Termination "KirAk47 won by resignation"]

1. d4 {[%clk 0:02:56.6]} 1... d5 {[%clk 0:02:55.6]} 2. c4 {[%clk 0:02:56]} 2...
dxc4 {[%clk 0:02:55.4]} 3. Nf3 {[%clk 0:02:55.3]} 3... Nf6 {[%clk 0:02:55.6]} 4.
e3 {[%clk 0:02:55.6]} 4... Bg4 {[%clk 0:02:56.2]} 5. Bxc4 {[%clk 0:02:52.6]}
5... e6 {[%clk 0:02:52.1]} 6. Nbd2 {[%clk 0:02:50.1]} 6... Nbd7 {[%clk
0:02:47.8]} 7. Qb3 {[%clk 0:02:38]} 7... Rb8 {[%clk 0:02:41.2]} 8. O-O {[%clk
0:02:15.6]} 8... a6 {[%clk 0:02:37.7]} 9. a4 {[%clk 0:02:13.9]} 9... c5 {[%clk
0:02:33.7]} 10. Ne5 {[%clk 0:01:55.3]} 10... Bf5 {[%clk 0:01:22.6]} 11. Ndf3
{[%clk 0:01:01.7]} 11... Be7 {[%clk 0:01:08.5]} 12. Rd1 {[%clk 0:00:29.7]} 12...
Qc7 {[%clk 0:01:05.7]} 13. Nxd7 {[%clk 0:00:21.1]} 13... Nxd7 {[%clk 0:01:05.6]}
14. a5 {[%clk 0:00:20.2]} 14... O-O {[%clk 0:01:05.5]} 15. h3 {[%clk 0:00:20]}
15... Rfc8 {[%clk 0:01:04]} 16. Bd2 {[%clk 0:00:20.1]} 16... cxd4 {[%clk
0:01:04.2]} 17. Rac1 {[%clk 0:00:18.4]} 17... dxe3 {[%clk 0:01:00.2]} 18. Bxe6
{[%clk 0:00:16.8]} 18... exf2+ {[%clk 0:00:57.2]} 19. Kxf2 {[%clk 0:00:13.5]}
19... Bc5+ {[%clk 0:00:55.3]} 20. Be3 {[%clk 0:00:13.7]} 20... Bxe6 {[%clk
0:00:55]} 0-1

[Event "Late-Titled-Tuesday-Blitz-May-28-2024"]
[Site "Chess.com"]
[Date "2024.05.28"]
[Round "1"]
[White "rasmussvane"]
[Black "manitodeplomo"]
[Result "1-0"]
[WhiteElo "2953"]
[BlackElo "2511"]
[TimeControl "180+1"]
[EndTime "14:05:58 PDT"]
[Termination "rasmussvane won by checkmate"]

1. Nf3 {[%clk 0:02:59.2]} 1... g6 {[%clk 0:02:48.9]} 2. e4 {[%clk 0:02:56.7]}
2... Bg7 {[%clk 0:02:49.4]} 3. d4 {[%clk 0:02:56.2]} 3... c5 {[%clk 0:02:49.8]}
4. d5 {[%clk 0:02:53.3]} 4... d6 {[%clk 0:02:49.4]} 5. Nc3 {[%clk 0:02:52.2]}
5... Nf6 {[%clk 0:02:46.5]} 6. Bb5+ {[%clk 0:02:51.2]} 6... Bd7 {[%clk 0:02:46]}
7. a4 {[%clk 0:02:52.1]} 7... Bxb5 {[%clk 0:02:45.7]} 8. axb5 {[%clk 0:02:52.1]}
8... Nbd7 {[%clk 0:02:46.4]} 9. O-O {[%clk 0:02:49.7]} 9... O-O {[%clk
0:02:46.6]} 10. h3 {[%clk 0:02:45.1]} 10... Nb6 {[%clk 0:02:46.5]} 11. Qe2
{[%clk 0:02:44.6]} 11... Ne8 {[%clk 0:02:46.8]} 12. Rd1 {[%clk 0:02:39.9]} 12...
Nc7 {[%clk 0:02:47.1]} 13. Bf4 {[%clk 0:02:28.7]} 13... Qd7 {[%clk 0:02:46.8]}
14. e5 {[%clk 0:02:20.1]} 14... f6 {[%clk 0:02:44.7]} 15. e6 {[%clk 0:02:08.1]}
15... Qe8 {[%clk 0:02:42.5]} 16. Ra5 {[%clk 0:01:18.6]} 16... g5 {[%clk
0:02:40.4]} 17. Be3 {[%clk 0:01:12.6]} 17... Qg6 {[%clk 0:02:27.2]} 18. Rda1
{[%clk 0:01:12.3]} 18... a6 {[%clk 0:01:41.8]} 19. bxa6 {[%clk 0:01:13.2]} 19...
bxa6 {[%clk 0:01:41.2]} 20. b4 {[%clk 0:00:53]} 20... Nbxd5 {[%clk 0:01:31.7]}
21. Nxd5 {[%clk 0:00:52.2]} 21... Nxd5 {[%clk 0:01:31.9]} 22. bxc5 {[%clk
0:00:52.6]} 22... f5 {[%clk 0:01:26.8]} 23. Bxg5 {[%clk 0:00:45.5]} 23... Bxa1
{[%clk 0:01:24.7]} 24. Rxa1 {[%clk 0:00:46.4]} 24... dxc5 {[%clk 0:01:15.1]} 25.
c4 {[%clk 0:00:45.7]} 25... Nb4 {[%clk 0:01:12.1]} 26. Bxe7 {[%clk 0:00:32.7]}
26... Rfe8 {[%clk 0:01:11.2]} 27. Nh4 {[%clk 0:00:21.1]} 27... Qg7 {[%clk
0:01:08.8]} 28. Ra3 {[%clk 0:00:21.4]} 28... Qxe7 {[%clk 0:01:05.4]} 29. Rg3+
{[%clk 0:00:20.9]} 29... Kf8 {[%clk 0:00:57.7]} 30. Qe5 {[%clk 0:00:19.8]} 30...
Qxh4 {[%clk 0:00:56.1]} 31. Qg7# {[%clk 0:00:19.7]} 1-0

[Event "Late-Titled-Tuesday-Blitz-May-28-2024"]
[Site "Chess.com"]
[Date "2024.05.28"]
[Round "1"]
[White "Juliana_Figueira"]
[Black "2346PL"]
[Result "0-1"]
[WhiteElo "1958"]
[BlackElo "2544"]
[TimeControl "180+1"]
[EndTime "14:06:03 PDT"]
[Termination "2346PL won by checkmate"]

1. d4 {[%clk 0:02:59.7]} 1... e5 {[%clk 0:02:59.1]} 2. dxe5 {[%clk 0:02:55.1]}
2... Nc6 {[%clk 0:02:59.4]} 3. Nf3 {[%clk 0:02:54.8]} 3... Qe7 {[%clk
0:02:59.9]} 4. Qd5 {[%clk 0:02:19.1]} 4... f6 {[%clk 0:02:56.6]} 5. exf6 {[%clk
0:02:18]} 5... Nxf6 {[%clk 0:02:56.6]} 6. Qd1 {[%clk 0:02:15.1]} 6... d5 {[%clk
0:02:55.4]} 7. e3 {[%clk 0:02:15]} 7... Bg4 {[%clk 0:02:51.7]} 8. Be2 {[%clk
0:02:14.9]} 8... O-O-O {[%clk 0:02:51.2]} 9. h3 {[%clk 0:02:10.4]} 9... Bh5
{[%clk 0:02:49.5]} 10. c3 {[%clk 0:02:05.9]} 10... Ne4 {[%clk 0:02:41.8]} 11.
Nd4 {[%clk 0:02:00.9]} 11... Bxe2 {[%clk 0:02:35.2]} 12. Qxe2 {[%clk 0:01:49.3]}
12... Ne5 {[%clk 0:02:32.9]} 13. Nd2 {[%clk 0:01:43.9]} 13... Qf6 {[%clk
0:02:19.6]} 14. O-O {[%clk 0:01:28.5]} 14... c5 {[%clk 0:02:15]} 15. N4f3 {[%clk
0:01:23.7]} 15... Bd6 {[%clk 0:02:14.5]} 16. c4 {[%clk 0:01:02.6]} 16... Nxd2
{[%clk 0:01:57.5]} 17. Nxd2 {[%clk 0:00:47.6]} 17... dxc4 {[%clk 0:01:24.1]} 18.
Nxc4 {[%clk 0:00:48.5]} 18... Bc7 {[%clk 0:01:24.6]} 19. Nxe5 {[%clk 0:00:34.6]}
19... Qxe5 {[%clk 0:01:24.4]} 20. g3 {[%clk 0:00:34.7]} 20... h5 {[%clk
0:01:23.5]} 21. Rb1 {[%clk 0:00:29.9]} 21... h4 {[%clk 0:01:20.6]} 22. f4 {[%clk
0:00:28.4]} 22... Qe4 {[%clk 0:01:18.9]} 23. Bd2 {[%clk 0:00:22.7]} 23... hxg3
{[%clk 0:01:17.1]} 24. Qg4+ {[%clk 0:00:22.5]} 24... Kb8 {[%clk 0:01:16.6]} 25.
Bc3 {[%clk 0:00:19.9]} 25... Qxe3+ {[%clk 0:01:06.6]} 26. Kg2 {[%clk 0:00:19.8]}
26... Qe4+ {[%clk 0:00:54.9]} 27. Qf3 {[%clk 0:00:19.3]} 27... Qc2+ {[%clk
0:00:52.1]} 28. Kg1 {[%clk 0:00:16.9]} 28... Qh2# {[%clk 0:00:50.9]} 0-1